[Event "Chile-ch Absolute 2018-19"]
[Site "Santiago"]
[Date "2019.02.27"]
[Round "10.6"]
[White "Olivares Olivares, Claudio"]
[Black "Tapia Fuentes, Jaime"]
[Result "1-0"]
[ECO "B70"]
[WhiteElo "2387"]
[BlackElo "2259"]
[Annotator "NA"]
[PlyCount "85"]
[EventDate "2019.02.20"]
[EventType "tourn"]
[EventCountry "CHI"]
[SourceTitle "playchess.com"]
[Source "ChessBase"]
[SourceQuality "1"]
[TimeControl "5400+30"]

1. e4 {[%emt 0:00:00]} c5 {[%emt 0:00:00]} 2. Nf3 {[%emt 0:00:00]} d6 {[%emt 0:00:00]} 3. d4 {[%emt 0:00:00]} cxd4 {[%emt 0:00:04]} 4. Nxd4 {[%emt 0:00:00]} Nf6 {[%emt 0:00:04]} 5. Nc3 {[%emt 0:00:05]} g6 {[%emt 0:00:03]} 6. Be2 {[%emt 0:00:06]} Bg7 {[%emt 0:00:06]} 7. O-O {[%emt 0:00:07]} O-O {[%emt 0:00:06]} 8. Re1 {[%emt 0:00:05]} Nc6 {[%emt 0:02:39]} 9. Nb3 {[%emt 0:00:49]} Be6 {[%emt 0:04:01]} 10. Bf1 {[%emt 0:00:36]} a6 {[%emt 0:09:46]} 11. Nd5 {[%emt 0:00:45]} b5 {[%emt 0:07:02]} 12. c3 {[%emt 0:00:39]} Re8 {[%emt 0:05:30]} 13. Bg5 {[%emt 0:03:59]} Bxd5 {[%emt 0:00:50]} 14. exd5 {[%emt 0:01:20]} Na5 {[%emt 0:00:06]} 15. Nxa5 {[%emt 0:08:53]} Qxa5 {[%emt 0:00:09]} 16. Qd2 {[%emt 0:00:07]} Rac8 {[%emt 0:02:35]} 17. Re3 {[%emt 0:06:43]} Qc7 {[%emt 0:17:49]} 18. Rd1 {[%emt 0:08:11]} Qb7 {[%emt 0:08:56]} 19. Be2 {[%emt 0:04:16]} Rc5 {[%emt 0:16:03]} 20. Bf3 {[%emt 0:00:14]} h6 {[%emt 0:01:06]} 21. Bh4 {[%emt 0:05:04]} Rc4 {[%emt 0:01:20]} 22. Bg3 {[%emt 0:02:07]} h5 {[%emt 0:02:10]} 23. Qe1 {[%emt 0:02:53]} Kf8 {[%emt 0:01:30]} 24. h3 {[%emt 0:04:59]} Qd7 {[%emt 0:06:44]} 25. Qe2 {[%emt 0:13:18]} Ng8 {[%emt 0:00:51]} 26. Be4 {[%emt 0:07:13]} Nf6 {[%emt 0:00:39]} 27. Bc2 {[%emt 0:00:42]} Rc5 {[%emt 0:00:38]} 28. Bb3 {[%emt 0:00:40]} a5 {[%emt 0:02:46]} 29. a3 {[%emt 0:00:10]} a4 {[%emt 0:01:40]} 30. Ba2 {[%emt 0:00:06]} Qb7 {[%emt 0:01:53]} 31. Red3 {[%emt 0:04:01]} Ng8 {[%emt 0:05:24]} 32. f4 {[%emt 0:04:14]} Nh6 {[%emt 0:00:06]} 33. Bf2 {[%emt 0:00:08]} Rcc8 {[%emt 0:00:12]} 34. g4 {[%emt 0:00:17]} hxg4 {[%emt 0:00:32]} 35. hxg4 {[%emt 0:00:07]} Qd7 {[%emt 0:00:40]} 36. Rg3 {[%emt 0:00:14]} f5 {[%emt 0:00:14]} 37. gxf5 {[%emt 0:01:31]} Nxf5 {[%emt 0:03:10]} 38. Rxg6 {[%emt 0:00:13]} Kf7 {[%emt 0:00:11]} 39. Rg5 {[%emt 0:02:32]} Rh8 {[%emt 0:01:03]} 40. Qg4 {[%emt 0:00:34]} Bf6 {[%emt 0:00:01]} 41. Bb1 {[%emt 0:01:09]} e6 {[%emt 0:01:20]} 42. dxe6+ {[%emt 0:00:16]} Qxe6 {[%emt 0:00:22]} 43. Bxf5 {[%emt 0:00:07]} 1-0

[Event "Chile-ch Absolute 2018-19"]
[Site "Santiago"]
[Date "2019.02.28"]
[Round "11.4"]
[White "Abarca Gonzalez, Nicolas"]
[Black "Vergara Jofre, Felipe"]
[Result "1-0"]
[ECO "A06"]
[WhiteElo "2418"]
[BlackElo "2265"]
[Annotator "NA RC"]
[PlyCount "131"]
[EventDate "2019.02.20"]
[EventType "tourn"]
[EventCountry "CHI"]
[SourceTitle "playchess.com"]
[Source "ChessBase"]
[SourceQuality "1"]
[TimeControl "5400+30"]

1. Nf3 {[%emt 0:09:03]} d5 {[%emt 0:00:00]} 2. b3 {[%emt 0:00:03]} Bg4 {[%emt 0:00:00]} 3. e3 {[%emt 0:00:24]} Nd7 {[%emt 0:05:11]} 4. Bb2 {[%emt 0:00:20]} Ngf6 {[%emt 0:05:14]} 5. c4 {[%emt 0:00:39]} e6 {[%emt 0:00:49]} 6. Nc3 {[%emt 0:01:17]} h6 {[%emt 0:04:09]} 7. Be2 {[%emt 0:01:28]} c6 $11 {[%emt 0:01:53]} 8. d4 {[%emt 0:00:15]} Bd6 {[%emt 0:04:39]} 9. O-O {[%emt 0:00:21]} O-O {[%emt 0:00:22]} 10. h3 {[%emt 0:02:22]} Bf5 {[%emt 0:07:16]} 11. Bd3 {[%emt 0:05:05]} Bxd3 {[%emt 0:06:12]} 12. Qxd3 {[%emt 0:00:03]} Re8 {[%emt 0:01:01]} 13. Rad1 {[%emt 0:04:06]} Qa5 {[%emt 0:07:03]} 14. Qd2 {[%emt 0:18:33]} Qa6 {[%emt 0:05:32]} 15. c5 {[%emt 0:00:20]} Bc7 {[%emt 0:02:02]} 16. Qc2 {[%emt 0:02:13]} b6 {[%emt 0:11:25]} 17. cxb6 {[%emt 0:01:27]} axb6 {[%emt 0:00:55]} 18. a4 {[%emt 0:00:49]} Rac8 {[%emt 0:05:06]} 19. Rfe1 {[%emt 0:15:35]} Bd6 {[%emt 0:04:24]} 20. Qe2 {[%emt 0:04:38]} Qa5 {[%emt 0:03:58]} 21. Rc1 {[%emt 0:01:14]} Bb4 {[%emt 0:03:32]} 22. Red1 {[%emt 0:00:25]} b5 {[%emt 0:07:56]} 23. axb5 {[%emt 0:12:22]} Bxc3 {[%emt 0:00:11]} 24. Bxc3 {[%emt 0:00:30]} Qxb5 {[%emt 0:00:07]} 25. Qxb5 {[%emt 0:00:18]} cxb5 {[%emt 0:00:00]} 26. Ba5 {[%emt 0:00:06]} Ne4 {[%emt 0:05:36]} 27. Ne1 {[%emt 0:01:19]} Rxc1 {[%emt 0:02:19]} 28. Rxc1 {[%emt 0:00:10]} Ra8 {[%emt 0:00:00]} 29. Bb4 {[%emt 0:01:06]} Ra2 {[%emt 0:00:30]} 30. Nd3 {[%emt 0:00:45]} Nd2 {[%emt 0:00:35]} 31. Bxd2 {[%emt 0:02:47]} Rxd2 {[%emt 0:00:01]} 32. Nc5 {[%emt 0:00:05]} Nxc5 {[%emt 0:02:45]} 33. Rxc5 {[%emt 0:01:30]} h5 {[%emt 0:00:19]} 34. h4 {[%emt 0:00:11]} g6 {[%emt 0:02:26]} 35. Rxb5 {[%emt 0:01:17]} Kg7 {[%emt 0:00:23]} 36. Rb8 {[%emt 0:00:22]} Rb2 {[%emt 0:02:00]} 37. b4 {[%emt 0:00:12]} f6 {[%emt 0:00:52]} 38. b5 {[%emt 0:00:46]} e5 {[%emt 0:00:20]} 39. b6 {[%emt 0:01:37]} exd4 {[%emt 0:00:40]} 40. exd4 {[%emt 0:00:04]} Rb1+ {[%emt 0:00:56]} 41. Kh2 {[%emt 0:00:03]} Rb4 {[%emt 0:00:31]} 42. b7 {[%emt 0:00:05]} Rb2 {[%emt 0:01:03]} 43. Kg3 {[%emt 0:00:32]} Rb3+ {[%emt 0:00:23]} 44. f3 {[%emt 0:03:12]} Rb4 {[%emt 0:00:13]} 45. Kf2 {[%emt 0:00:07]} Rb2+ {[%emt 0:00:03]} 46. Ke3 {[%emt 0:00:03]} Rb3+ {[%emt 0:00:39]} 47. Kd2 {[%emt 0:00:02]} Rb4 {[%emt 0:00:14]} 48. Kc3 {[%emt 0:00:12]} Rb1 {[%emt 0:00:29]} 49. g4 {[%emt 0:02:07]} hxg4 {[%emt 0:01:03]} 50. fxg4 {[%emt 0:00:03]} g5 {[%emt 0:00:07]} 51. hxg5 {[%emt 0:00:36]} fxg5 {[%emt 0:00:02]} 52. Rd8 {[%emt 0:00:11]} Rxb7 {[%emt 0:00:14]} 53. Rxd5 {[%emt 0:00:02]} Kf6 {[%emt 0:01:19]} 54. Rf5+ {[%emt 0:00:38]} Kg6 {[%emt 0:00:10]} 55. Re5 {[%emt 0:02:05]} Rc7+ {[%emt 0:01:38]} 56. Kb4 {[%emt 0:00:52]} Kf6 {[%emt 0:00:29]} 57. Rf5+ {[%emt 0:00:45]} Kg6 {[%emt 0:00:16]} 58. d5 {[%emt 0:00:24]} Rb7+ {[%emt 0:00:55]} 59. Kc5 {[%emt 0:00:13]} Rc7+ {[%emt 0:00:01]} 60. Kd4 {[%emt 0:01:59]} Rc1 {[%emt 0:00:14]} 61. d6 {[%emt 0:00:20]} Rd1+ {[%emt 0:01:04]} 62. Kc5 {[%emt 0:00:12]} Rc1+ {[%emt 0:00:36]} 63. Kb6 {[%emt 0:00:14]} Rd1 {[%emt 0:00:37]} 64. Kc6 {[%emt 0:00:11]} Rd2 {[%emt 0:00:22]} 65. d7 {[%emt 0:00:18]} Rc2+ {[%emt 0:00:09]} 66. Rc5 {[%emt 0:00:11]} 1-0